fUST/lending_fUST_20240207
["ID","MTS","AMOUNT","RATE_DAILY","PERIOD"]
[313390070,1707263446403,-529.66,0.00027824,3]
[313390071,1707263446413,-500.0,0.00027824,3]
[313390072,1707263446423,-500.0,0.00027824,3]
[313390073,1707263446433,-559.14879036,0.00027824,3]
[313390074,1707263446442,-500.0,0.00027824,3]
[313390075,1707263446452,-500.0,0.00027824,3]
[313390076,1707263446463,-500.0,0.00027824,3]
[313390077,1707263446473,-500.0,0.00027824,3]
[313390078,1707263446482,-500.0,0.00027824,3]
[313390079,1707263446491,-500.0,0.00027824,3]
[313390080,1707263446501,-500.0,0.00027824,3]
[313390081,1707263446510,-500.0,0.00027824,3]
[313390082,1707263446521,-675.14,0.00027824,3]
[313390083,1707263446531,-1288.84,0.00027824,3]
[313390084,1707263446540,-500.0,0.00027824,3]
[313390085,1707263446550,-792.07,0.00027824,3]
[313390086,1707263446560,-3362.07,0.00027824,3]
[313390087,1707263446572,-500.0,0.00027824,3]
[313390088,1707263446581,-500.0,0.00027824,3]
[313390089,1707263446590,-500.0,0.00027824,3]
[313390090,1707263446600,-5423.7,0.00027824,3]
[313390091,1707263446610,-1035.88,0.00027824,3]
[313390092,1707263446619,-648.87,0.00027824,3]
[313390093,1707263446629,-500.0,0.00027824,3]
[313390094,1707263446638,-743.1,0.00027824,3]
[313390095,1707263446649,-657.6,0.00027824,3]
[313390096,1707263446658,-12465.39701143,0.00027825,2]
[313390097,1707263446668,-228.31510903,0.00027829,2]
[313390098,1707263446678,-228.31510899,0.000279,2]
[313390099,1707263446687,-558.95369322,0.00027938,2]
[313390100,1707263446696,-562.41090453,0.00027938,2]
[313390101,1707263446706,-309.93489492,0.00027938,2]
[313390102,1707263446715,-156.16974077,0.00027938,2]
[313390103,1707263446725,-155.92690154,0.00027938,2]
[313390104,1707263446734,-309.98450155,0.00027938,2]
[313390105,1707263446743,-155.32972216,0.00027938,2]
[313390106,1707263446752,-179.38843459,0.00027938,2]
[313390107,1707263446761,-310.03720446,0.00027939,2]
[313390108,1707263446772,-809.67911385,0.0002794,2]
[313390109,1707263446782,-34743.34108127,0.0002794,2]
[313390110,1707263446791,-1012.14837358,0.0002794,2]
[313390111,1707263446800,-313.11416557,0.0002794,6]
[313390112,1707263446809,-268.90402832,0.0002794,2]
[313390113,1707263446818,-654.58212953,0.0002794,2]
[313390114,1707263446827,-3252.59212443,0.0002794,2]
[313390115,1707263446838,-155.00620025,0.0002794,2]
[313390116,1707263446848,-765.83829115,0.0002794,2]
[313390117,1707263446857,-601.4,0.0002794,3]
[313390118,1707263446866,-500.0,0.0002794,3]
[313390119,1707263446875,-490.61659253,0.0002794,3]
[313390120,1707263446884,-500.0,0.0002794,3]
[313390121,1707263446893,-500.0,0.0002794,3]
[313390122,1707263446902,-500.0,0.0002794,3]
[313390123,1707263446912,-500.0,0.0002794,3]
[313390124,1707263446921,-500.0,0.0002794,3]
[313390125,1707263446930,-500.0,0.0002794,3]
[313390126,1707263446939,-507.90586278,0.0002794,3]
[313390127,1707263446948,-230.09937331,0.0002794,3]
[313390128,1707263446957,-516.15020784,0.0002794,3]
[313390129,1707263446967,-500.0,0.0002794,3]
[313390130,1707263446976,-500.0,0.0002794,3]
[313390131,1707263446985,-500.0,0.0002794,3]
[313390132,1707263446995,-500.0,0.0002794,3]
[313390133,1707263447004,-500.0,0.0002794,3]
[313390134,1707263447013,-500.0,0.0002794,3]
[313390135,1707263447023,-500.0,0.0002794,3]
[313390136,1707263447032,-529.98413936,0.0002794,3]
[313390137,1707263447041,-500.0,0.0002794,3]
[313390138,1707263447051,-500.0,0.0002794,3]
[313390139,1707263447060,-531.74712945,0.0002794,3]
[313390140,1707263447069,-500.0,0.0002794,3]
[313390141,1707263447079,-500.0,0.0002794,3]
[313390142,1707263447088,-500.0,0.0002794,3]
[313390143,1707263447097,-500.0,0.0002794,3]
[313390144,1707263447107,-407.5255885,0.0002794,3]
[313390145,1707263447116,-634.31766749,0.0002794,3]
[313390146,1707263447125,-519.18299543,0.0002794,3]
[313390147,1707263447135,-500.0,0.0002794,3]
[313390148,1707263447144,-387.22354282,0.0002794,3]
[313390149,1707263447154,-500.0,0.0002794,3]
[313390150,1707263447163,-500.0,0.0002794,3]
[313390151,1707263447172,-500.0,0.0002794,3]
[313390152,1707263447182,-500.0,0.0002794,3]
[313390153,1707263447191,-500.0,0.0002794,3]
[313390154,1707263447200,-500.0,0.0002794,2]
[313390155,1707263447209,-500.0,0.0002794,3]
[313390156,1707263447218,-500.0,0.0002794,3]
[313390157,1707263447228,-500.0,0.0002794,3]
[313390158,1707263447237,-500.0,0.0002794,3]
[313390159,1707263447246,-500.0,0.0002794,3]
[313390160,1707263447256,-500.0,0.0002794,3]
[313390161,1707263447266,-506.83299344,0.0002794,3]
[313390162,1707263447276,-500.0,0.0002794,3]
[313390163,1707263447285,-500.0,0.0002794,3]
[313390164,1707263447294,-500.0,0.0002794,3]
[313390165,1707263447303,-376.26094638,0.0002794,3]
[313390166,1707263447312,-500.0,0.0002794,3]
[313390167,1707263447321,-514.3313414,0.0002794,3]
[313390168,1707263447331,-500.0,0.0002794,3]
[313390169,1707263447340,-500.0,0.0002794,3]
[313390170,1707263447349,-500.0,0.0002794,3]
[313390171,1707263447358,-537.78874065,0.0002794,3]
[313390172,1707263447367,-539.02136947,0.00027941,3]
[313390173,1707263447377,-500.0,0.00027942,2]
[313390174,1707263447387,-584.57540013,0.00027942,2]
[313390175,1707263447396,-500.0,0.00027942,3]
[313390176,1707263447405,-359.88667857,0.00027942,3]
[313390177,1707263447415,-519.63984303,0.00027942,3]
[313390178,1707263447424,-508.61899253,0.00027942,3]
[313390179,1707263447434,-500.0,0.00027942,3]
[313390180,1707263447443,-589.25511733,0.00027943,2]
[313390181,1707263447452,-228.31510899,0.00027972,2]
[313390182,1707263447462,-425.78179771,0.00027997,2]
[313390183,1707263447471,-500.0,0.00027998,2]
[313390184,1707263447481,-500.0,0.00027998,2]
[313390185,1707263447490,-500.0,0.00027998,2]
[313390186,1707263447499,-500.0,0.00027998,2]
[313390187,1707263447509,-500.0,0.00027998,2]
[313390188,1707263447518,-253.74237114,0.00027998,2]
[313390189,1707263447528,-500.0,0.00027998,2]
[313390190,1707263447537,-500.0,0.00027998,2]
[313390191,1707263447547,-500.0,0.00027998,2]
[313390192,1707263447557,-500.0,0.00027998,2]
[313390193,1707263447569,-336.13710459,0.00027998,2]
[313390194,1707263447686,-500.0,0.00027998,2]
[313390195,1707263447695,-500.0,0.00027998,2]
[313390196,1707263447704,-500.0,0.00027998,2]
[313390197,1707263447713,-500.0,0.00027998,2]
[313390198,1707263447722,-500.0,0.00027998,2]
[313390199,1707263447731,-209.95294424,0.00027998,2]
[313390200,1707263447741,-500.0,0.00027998,2]
[313390201,1707263447751,-500.0,0.00027998,2]
[313390202,1707263447760,-16517.62415205,0.00027999,2]
[313390203,1707263447770,-459.57779537,0.00028,3]
[313390204,1707263447779,-179.49860241,0.00028,2]
[313390205,1707263447788,-4849.54945015,0.00028,20]
[313390206,1707263447797,-886.32351745,0.00028,4]
[313390207,1707263447806,-9801.08327352,0.00028,4]
[313390208,1707263447815,-228.31510899,0.00028043,2]
[313390209,1707263447824,-3296.19,0.00028096,3]
[313390210,1707263447833,-500.0,0.00028096,3]
[313390211,1707263447842,-500.0,0.00028096,3]
[313390212,1707263447852,-4812.31,0.00028096,3]
[313390213,1707263447861,-500.0,0.00028096,3]
[313390214,1707263447870,-5958.88,0.00028096,3]
[313390215,1707263447879,-500.0,0.00028097,3]
[313390216,1707263447888,-500.0,0.00028097,3]
[313390217,1707263447898,-500.0,0.00028097,3]
[313390218,1707263447907,-500.0,0.00028097,3]
[313390219,1707263447915,-532.14,0.00028097,3]
[313390220,1707263447924,-2233.02,0.00028097,3]
[313390221,1707263447933,-500.0,0.00028097,3]
[313390222,1707263447942,-500.0,0.00028097,3]
[313390223,1707263447952,-500.0,0.00028097,3]
[313390224,1707263447961,-500.0,0.00028097,3]
[313390225,1707263447970,-845.93,0.00028097,3]
[313390226,1707263447979,-939.81,0.00028097,3]
[313390227,1707263447988,-500.0,0.00028097,3]
[313390228,1707263447997,-500.0,0.00028097,3]
[313390229,1707263448006,-500.0,0.00028097,3]
[313390230,1707263448015,-1385.58,0.00028097,3]
[313390231,1707263448024,-500.0,0.00028097,3]
[313390232,1707263448034,-1963.99,0.00028097,3]
[313390233,1707263448044,-2107.44,0.00028097,3]
[313390234,1707263448053,-416.55257892,0.00028097,3]
[313390235,1707263448062,-1079.71,0.00028097,3]
[313390236,1707263448071,-529.66,0.00028098,3]
[313390237,1707263448081,-500.0,0.00028098,3]
[313390238,1707263448090,-500.0,0.00028098,3]
[313390239,1707263448098,-500.0,0.00028098,3]
[313390240,1707263448107,-500.0,0.00028098,3]
[313390241,1707263448117,-675.14,0.00028098,3]
[313390242,1707263448126,-1288.84,0.00028098,3]
[313390243,1707263448135,-347.53312367,0.00028098,3]
[313390244,1707263448145,-792.07,0.00028098,3]
[313390245,1707263448154,-3362.07,0.00028098,3]
[313390246,1707263448164,-500.0,0.00028098,3]
[313390247,1707263448174,-500.0,0.00028098,3]
[313390248,1707263448183,-5423.7,0.00028098,3]
[313390249,1707263448192,-1035.88,0.00028098,3]
[313390250,1707263448201,-648.87,0.00028098,3]
[313390251,1707263448210,-743.1,0.00028098,3]
[313390252,1707263448219,-657.6,0.00028098,3]
[313390253,1707263448228,-228.31510899,0.00028114,2]
[313390254,1707263448237,-19747.97099066,0.00028117,2]
[313390262,1707264319944,74734.0,0.00029,30]
[313390417,1707264631894,-1290.65162282,0.00024756,2]
[313390418,1707264631904,-387.53130135,0.00024756,2]
[313390419,1707264631913,-357.77400353,0.00024757,2]
[313390420,1707264631923,-155.00775039,0.00024757,4]
[313390421,1707264631933,-10353.45619916,0.00024757,2]
[313390422,1707264631945,-453.44105066,0.00024787,2]
[313390423,1707264631956,-675.57351496,0.00024787,2]
[313390424,1707264631965,-346.67137782,0.0002577,2]
[313390425,1707264631975,-200.0,0.00027239,15]
[313390426,1707264631987,-5000.0,0.00027272,5]
[313390427,1707264631999,-151.9547315,0.0002778,2]
[313390428,1707264632008,-153.0,0.000278,2]
[313390429,1707264632018,-371.2448491,0.000278,2]
[313390430,1707264632028,-153.0,0.000278,2]
[313390431,1707264632038,-199.8729763,0.000278,2]
[313390432,1707264632047,-153.0,0.000278,2]
[313390433,1707264632056,-153.0,0.000278,2]
[313390434,1707264632066,-153.0,0.000278,2]
[313390435,1707264632075,-153.0,0.000278,2]
[313390436,1707264632084,-199.8729763,0.000278,2]
[313390437,1707264632093,-153.0,0.000278,2]
[313390438,1707264632103,-153.0,0.000278,2]
[313390439,1707264632113,-153.0,0.000278,2]
[313390440,1707264632122,-199.351588,0.000278,2]
[313390441,1707264632131,-1380.1,0.0002781,3]
[313390442,1707264632140,-2631.75,0.0002781,3]
[313390443,1707264632149,-2193.13,0.0002781,3]
[313390444,1707264632158,-9037.64,0.00027819,3]
[313390445,1707264632167,-500.0,0.00027819,3]
[313390446,1707264632177,-500.0,0.00027819,3]
[313390447,1707264632186,-500.0,0.00027819,3]
[313390448,1707264632197,-2046.93,0.00027819,3]
[313390449,1707264632207,-500.0,0.00027819,3]
[313390450,1707264632217,-3085.04,0.00027819,3]
[313390451,1707264632227,-500.0,0.00027819,3]
[313390452,1707264632236,-861.49,0.00027819,3]
[313390453,1707264632246,-500.0,0.00027819,3]
[313390454,1707264632255,-500.0,0.00027819,3]
[313390455,1707264632264,-500.0,0.00027819,3]
[313390456,1707264632273,-4411.28,0.00027819,3]
[313390457,1707264632283,-500.0,0.00027819,3]
[313390458,1707264632293,-500.0,0.00027819,3]
[313390459,1707264632302,-994.22199122,0.00027819,3]
[313390460,1707264632400,-859.28800878,0.00027819,3]
[313390461,1707264632409,-655.86050456,0.00027819,3]
[313390514,1707264641286,-168.70390718,0.00027719,3]
[313390515,1707264641317,-1326.71949544,0.00027819,3]
[313390516,1707264641327,-245.75079885,0.00027819,3]
[313390517,1707264641339,-8415.31920115,0.00027819,3]
[313390518,1707264641349,-500.0,0.0002782,3]
[313390519,1707264641358,-500.0,0.0002782,3]
[313390520,1707264641368,-500.0,0.0002782,3]
[313390521,1707264641377,-500.0,0.0002782,3]
[313390522,1707264641386,-500.0,0.0002782,3]
[313390523,1707264641396,-500.0,0.0002782,3]
[313390524,1707264641405,-500.0,0.0002782,3]
[313390525,1707264641414,-500.0,0.0002782,3]
[313390526,1707264641424,-1025.9,0.0002782,3]
[313390527,1707264641433,-645.16,0.0002782,3]
[313390528,1707264641442,-500.0,0.0002782,3]
[313390529,1707264641452,-500.0,0.0002782,3]
[313390530,1707264641461,-755.52,0.0002782,3]
[313390531,1707264641471,-1238.81,0.0002782,3]
[313390532,1707264641480,-500.0,0.0002782,3]
[313390533,1707264641489,-2039.76715294,0.0002782,3]
[313390534,1707264641501,-1164.06284706,0.0002782,3]
[313390535,1707264641510,-500.0,0.0002782,3]
[313390536,1707264641519,-775.43,0.0002782,3]
[313390537,1707264641529,-500.0,0.0002782,3]
[313390538,1707264641538,-4966.05,0.0002782,3]
[313390539,1707264641548,-977.07,0.0002782,3]
[313390540,1707264641557,-615.63,0.0002782,3]
[313390541,1707264641567,-1314.73,0.0002782,3]
[313390542,1707264641577,-500.0,0.0002782,3]
[313390543,1707264641586,-681.18,0.00027822,3]
[313390544,1707264641596,-602.8,0.00027822,3]
[313390545,1707264641606,-500.0,0.00027822,3]
[313390546,1707264641615,-500.0,0.00027823,3]
[313390547,1707264641624,-500.0,0.00027823,3]
[313390548,1707264641634,-500.0,0.00027823,3]
[313390549,1707264641644,-500.0,0.00027823,3]
[313390550,1707264641654,-500.0,0.00027823,3]
[313390551,1707264641663,-500.0,0.00027823,3]
[313390552,1707264641673,-500.0,0.00027823,2]
[313390553,1707264641682,-500.0,0.00027823,3]
[313390554,1707264641691,-296.02001187,0.00027823,3]
[313390623,1707265810922,-18337.09900251,0.000295,30]
[313390624,1707265810993,-29582.05921816,0.0003,30]
[313390625,1707265811015,-5000.0,0.0003,30]
[313390626,1707265811036,-279.84177933,0.0003,30]
[313390663,1707265834308,-155.00930056,0.00024686,4]
[313390664,1707265834318,-357.77400353,0.00024687,2]
[313390665,1707265834327,-387.53130135,0.00024688,2]
[313390666,1707265834336,-391.83823233,0.00024688,2]
[313390671,1707265838203,-3273.91327912,0.00024688,2]
[313390672,1707265838215,-4962.12865452,0.00024688,2]
[313390673,1707265838225,-1290.65162282,0.00024689,2]
[313390674,1707265838235,-827.24276836,0.000248,2]
[313390699,1707265841421,-547.16867934,0.000248,2]
[313390700,1707265841434,-11186.24231078,0.000248,2]
[313390701,1707265841446,-3171.72312632,0.000248,2]
[313390702,1707265841458,-11598.42099416,0.000248,2]
[313390703,1707265841468,-1437.80435897,0.00024807,2]
[313390704,1707265841479,-3424.43745371,0.00024807,2]
[313390705,1707265841489,-2285.04353699,0.00024807,2]
[313390706,1707265841498,-500.0,0.00027,2]
[313390707,1707265841507,-200.0,0.00027279,15]
[313390708,1707265841517,-2547.46,0.00027387,3]
[313390709,1707265841526,-2122.89,0.00027387,3]
[313390711,1707265841535,-500.0,0.00027397,3]
[313390712,1707265841545,-500.0,0.00027397,3]
[313390713,1707265841554,-500.0,0.00027397,3]
[313390714,1707265841563,-500.0,0.00027397,3]
[313390715,1707265841572,-8505.55,0.00027397,3]
[313390716,1707265841581,-1018.68,0.00027397,3]
[313390717,1707265841591,-500.0,0.00027397,3]
[313390718,1707265841601,-500.0,0.00027397,3]
[313390719,1707265841609,-644.35,0.00027397,3]
[313390720,1707265841618,-500.0,0.00027397,3]
[313390721,1707265841628,-500.0,0.00027397,3]
[313390722,1707265841637,-500.0,0.00027397,3]
[313390723,1707265841646,-1243.99,0.00027397,3]
[313390724,1707265841655,-753.13,0.00027397,3]
[313390725,1707265841665,-2020.82,0.00027397,3]
[313390726,1707265841675,-500.0,0.00027397,3]
[313390727,1707265841684,-1947.88161323,0.00027397,3]
[313390732,1707265843280,-972.01848822,0.00027397,3]
[313390741,1707265846179,-1769.07,0.00027387,3]
[313390742,1707265846189,-271.37989855,0.00027397,3]
[313390743,1707265846198,-233.08322304,0.00027397,3]
[313390744,1707265846209,-207.11097893,0.00027397,3]
[313390745,1707265846219,-500.0,0.00027397,3]
[313390746,1707265846228,-500.0,0.00027397,3]
[313390747,1707265846238,-770.44,0.00027397,3]
[313390748,1707265846247,-5250.12,0.00027397,3]
[313390749,1707265846257,-3095.72,0.00027397,3]
[313390750,1707265846266,-863.0,0.00027397,3]
[313390751,1707265846277,-500.0,0.00027397,3]
[313390752,1707265846292,-500.0,0.00027397,3]
[313390753,1707265846301,-957.19,0.00027397,3]
[313390754,1707265846311,-610.81,0.00027397,3]
[313390755,1707265846321,-500.0,0.00027397,3]
[313390756,1707265846330,-4397.51,0.00027397,3]
[313390757,1707265846339,-1303.97,0.00027397,3]
[313390758,1707265846348,-500.0,0.00027397,3]
[313390759,1707265846358,-500.0,0.00027397,3]
[313390760,1707265846368,-500.0,0.00027397,3]
[313390761,1707265846378,-652.79,0.00027397,3]
[313390762,1707265846388,-1829.01,0.00027397,3]
[313390763,1707265846397,-500.0,0.00027397,2]
[313390764,1707265846406,-577.68,0.00027397,3]
[313390765,1707265846416,-1950.09,0.00027397,3]
[313390766,1707265846425,-500.0,0.00027397,3]
[313390767,1707265846435,-8151.15,0.00027397,3]
[313390768,1707265846444,-153.0,0.000274,2]
[313390769,1707265846453,-289.47396604,0.000275,2]
[313390770,1707265846467,-710.52603396,0.000275,2]
[313390771,1707265846476,-500.0,0.00027671,3]
[313390772,1707265846485,-500.0,0.00027671,3]
[313390773,1707265846495,-500.0,0.00027671,3]
[313390774,1707265846505,-480.284296,0.00027671,3]
[313390775,1707265846514,-1018.68,0.00027671,3]
[313390776,1707265846524,-500.0,0.00027671,3]
[313390777,1707265846533,-644.35,0.00027671,3]
[313390778,1707265846542,-500.0,0.00027671,3]
[313390779,1707265846552,-500.0,0.00027671,3]
[313390780,1707265846561,-500.0,0.00027671,3]
[313390781,1707265846570,-1243.99,0.00027671,3]
[313390782,1707265846579,-753.13,0.00027671,3]
[313390783,1707265846588,-2020.82,0.00027671,3]
[313390784,1707265846598,-500.0,0.00027671,3]
[313390785,1707265846608,-3191.28,0.00027671,3]
[313390786,1707265846617,-500.0,0.00027671,3]
[313390787,1707265846627,-500.0,0.00027671,3]
[313390788,1707265846637,-770.44,0.00027671,3]
[313390789,1707265846647,-5250.12,0.00027671,3]
[313390790,1707265846656,-3095.72,0.00027671,3]
[313390791,1707265846666,-863.0,0.00027671,3]
[313390792,1707265846675,-500.0,0.00027671,3]
[313390793,1707265846684,-500.0,0.00027671,3]
[313390794,1707265846694,-957.19,0.00027671,3]
[313390795,1707265846703,-610.81,0.00027671,3]
[313390796,1707265846713,-500.0,0.00027671,3]
[313390797,1707265846723,-4397.51,0.00027671,3]
[313390798,1707265846732,-1303.97,0.00027671,3]
[313390799,1707265846741,-500.0,0.00027671,3]
[313390800,1707265846750,-500.0,0.00027671,3]
[313390801,1707265846758,-652.79,0.00027671,3]
[313390802,1707265846767,-1829.01,0.00027671,3]
[313390803,1707265846776,-577.68,0.00027671,3]
[313390804,1707265846785,-1950.09,0.00027671,3]
[313390805,1707265846794,-500.0,0.00027671,3]
[313390806,1707265846803,-510.27804463,0.00027819,3]
[313390807,1707265846813,-500.0,0.00027819,3]
[313390808,1707265846822,-500.0,0.00027819,3]
[313390809,1707265846832,-500.0,0.00027819,3]
[313390810,1707265846841,-500.0,0.00027819,3]
[313390811,1707265846851,-500.0,0.00027819,3]
[313390812,1707265846860,-500.0,0.00027819,3]
[313390813,1707265846870,-500.0,0.00027819,3]
[313390814,1707265846879,-500.0,0.00027819,3]
[313390815,1707265846889,-500.0,0.00027819,3]
[313390816,1707265846898,-500.0,0.00027819,2]
[313390817,1707265846907,-500.0,0.00027819,3]
[313390818,1707265846916,-500.0,0.00027819,3]
[313390819,1707265846926,-203.97998813,0.00027819,3]
[313390820,1707265846935,-398.3617802,0.0002782,3]
[313390821,1707265846944,-549.797594,0.0002782,3]
[313390822,1707265846953,-500.0,0.0002782,3]
[313390823,1707265846963,-500.0,0.0002782,3]
[313390824,1707265846972,-4215.49226308,0.0002782,2]
[313390906,1707267032330,-525.75118754,0.00023348,2]
[313390966,1707267038635,-357.77400353,0.00023347,2]
[313390969,1707267038650,-764.90043528,0.00023348,2]
[313390972,1707267038661,-155.00930056,0.00023349,2]
[313390976,1707267038671,-155.00930056,0.00023349,4]
[313390978,1707267038683,-8627.88016597,0.00023349,2]
[313390980,1707267038695,-166.666666,0.00023366,2]
[313390983,1707267038706,-3029.11,0.00024797,3]
[313390985,1707267038717,-2524.26,0.00024797,3]
[313390987,1707267038727,-78641.33702204,0.00024807,2]
[313390989,1707267038738,-17730.2412278,0.00024807,2]
[313390991,1707267038748,-2676.77211691,0.00024807,2]
[313390993,1707267038758,-200.0,0.00025692,7]
[313390995,1707267038769,-86000.0,0.000265,3]
[313390997,1707267038779,-8236.64055242,0.00027394,2]
[313390999,1707267038789,-500.0,0.00027395,2]
[313391002,1707267038800,-525.13838535,0.00027396,2]
[313391004,1707267038810,-500.0,0.00027396,2]
[313391006,1707267038820,-500.0,0.00027396,2]
[313391008,1707267038831,-500.0,0.00027396,2]
[313391010,1707267038841,-500.0,0.00027396,2]
[313391025,1707267038972,-500.0,0.00027396,2]
[313391028,1707267038986,-500.0,0.00027396,2]
[313391030,1707267038995,-605.38202448,0.00027396,2]
[313391032,1707267039004,-500.0,0.00027396,2]
[313391034,1707267039013,-486.62979549,0.00027396,2]
[313391035,1707267039022,-600.04498152,0.00027396,2]
[313391037,1707267039031,-500.0,0.00027396,2]
[313391039,1707267039040,-500.0,0.00027396,2]
[313391041,1707267039049,-500.0,0.00027396,2]
[313391043,1707267039058,-604.80377705,0.00027396,2]
[313391045,1707267039067,-500.0,0.00027396,2]
[313391047,1707267039076,-500.0,0.00027396,2]
[313391049,1707267039085,-500.0,0.00027396,2]
[313391051,1707267039094,-360.62165372,0.00027396,2]
[313391053,1707267039103,-500.0,0.00027396,2]
[313391055,1707267039112,-500.0,0.00027396,2]
[313391057,1707267039122,-500.0,0.00027396,2]
[313391058,1707267039130,-629.37479119,0.00027396,2]
[313391060,1707267039140,-500.0,0.00027397,3]
[313391062,1707267039149,-500.0,0.00027397,3]
[313391064,1707267039158,-310.15523794,0.00027397,3]
[313391066,1707267039167,-500.0,0.00027397,3]
[313391068,1707267039176,-500.0,0.00027397,3]
[313391070,1707267039186,-500.0,0.00027397,3]
[313391072,1707267039194,-500.0,0.00027397,3]
[313391073,1707267039203,-500.0,0.00027397,3]
[313391075,1707267039213,-500.0,0.00027397,3]
[313391077,1707267039222,-500.0,0.00027397,3]
[313391079,1707267039231,-569.3,0.00027397,2]
[313391081,1707267039241,-500.0,0.00027397,3]
[313391083,1707267039250,-664.61,0.00027397,3]
[313391085,1707267039259,-500.0,0.00027397,3]
[313391087,1707267039268,-500.0,0.00027397,3]
[313391089,1707267039277,-500.0,0.00027397,3]
[313391091,1707267039287,-500.0,0.00027397,3]
[313391093,1707267039296,-500.0,0.00027397,3]
[313391095,1707267039306,-241.22646135,0.00027397,3]
[313391097,1707267039315,-500.0,0.00027397,3]
[313391099,1707267039325,-500.0,0.00027397,3]
[313391101,1707267039335,-500.0,0.00027397,3]
[313391103,1707267039344,-500.0,0.00027397,3]
[313391105,1707267039353,-720.1,0.00027397,3]
[313391107,1707267039362,-1754.98,0.00027397,3]
[313391109,1707267039372,-2504.99,0.00027397,3]
[313391111,1707267039382,-500.0,0.00027397,3]
[313391113,1707267039391,-858.57,0.00027397,3]
[313391115,1707267039401,-500.0,0.00027397,3]
[313391117,1707267039411,-599.42,0.00027397,3]
[313391119,1707267039420,-1000.43,0.00027397,3]
[313391121,1707267039430,-500.0,0.00027397,3]
[313391123,1707267039439,-4353.2,0.00027397,3]
[313391125,1707267039448,-582.17,0.00027397,3]
[313391127,1707267039458,-500.0,0.00027397,3]
[313391129,1707267039467,-500.0,0.00027397,3]
[313391131,1707267039479,-978.79,0.00027397,3]
[313391132,1707267039488,-500.0,0.00027397,3]
[313391133,1707267039498,-1217.49,0.00027397,3]
[313391134,1707267039508,-4290.67,0.00027397,3]
[313391135,1707267039517,-500.0,0.00027397,3]
[313391136,1707267039526,-367.30966142,0.00027397,3]
[313391137,1707267039536,-530.64,0.00027397,3]
[313391138,1707267039544,-7071.37,0.00027397,3]
[313391139,1707267039554,-511.13,0.00027397,3]
[313391140,1707267039563,-1663.69,0.00027397,3]
[313391141,1707267039572,-1178.54,0.00027397,3]
[313391142,1707267039582,-726.58,0.00027397,3]
[313391143,1707267039591,-500.0,0.00027397,3]
[313391144,1707267039600,-500.0,0.00027397,3]
[313391145,1707267039609,-5273.17,0.00027397,3]
[313391146,1707267039619,-1105.73,0.00027397,3]
[313391147,1707267039630,-2257.86,0.00027397,3]
[313391149,1707267039641,-696.21,0.00027397,3]
[313391150,1707267039650,-10106.28,0.00027397,3]
[313391151,1707267039659,-2318.25,0.00027397,3]
[313391152,1707267039668,-500.0,0.00027397,3]
[313391153,1707267039678,-500.0,0.00027397,3]
[313391154,1707267039687,-1287.12,0.00027397,3]
[313391155,1707267039695,-500.0,0.00027397,3]
[313391156,1707267039704,-6874.80501413,0.00027571,2]
[313391157,1707267039714,-1027.94445592,0.00027571,2]
[313391158,1707267039723,-151.0,0.00027571,2]
[313391159,1707267039732,-151.0,0.00027571,2]